bitfinex-derivatives/quotes_ETHF0:USTF0_20250130
["timestamp","ask_amount","ask_price","bid_price","bid_amount"]
[1738201287985,0.63688,3140.5,3140.1,1.71704]
[1738201288884,1.429,3140.8,3140.1,1.0801]
[1738201289085,0.63685,3140.6,3140.3,0.6369]
[1738201289590,0.63685,3140.6,3140.2,0.63692]
[1738201290394,3.73467951,3141.0,3140.1,1.0801]
[1738201290691,0.63683,3140.7,3140.4,0.63688]
[1738201290892,0.63686,3140.6,3140.3,0.6369]
[1738201291896,0.63683,3140.7,3140.4,0.63688]
[1738201292495,0.63685,3140.6,3140.3,0.6369]
[1738201292689,3.73467951,3141.0,3140.1,4.50961429]
[1738201292902,3.73467951,3141.0,3140.3,0.63689]
[1738201293393,0.63684,3140.7,3140.3,0.63689]
[1738201293597,0.63679,3140.9,3140.3,0.63689]
[1738201293792,0.63684,3140.7,3140.3,0.63689]
[1738201294892,0.63693,3140.2,3140.1,1.0801]
[1738201295491,0.63692,3140.3,3140.1,1.0801]
[1738201295887,0.63693,3140.2,3140.1,1.0801]
[1738201296088,0.63693,3140.2,3140.1,0.5282]
[1738201297797,0.63695,3140.1,3140.0,3.2078]
[1738201297999,1.59218,3140.5,3139.6,6.03705092]
[1738201298201,0.63702,3139.8,3139.6,6.03705092]
[1738201298899,0.637,3139.9,3139.6,6.03705092]
[1738201299496,3.7201,3140.2,3139.6,3.2078]
[1738201299795,0.63702,3139.8,3139.6,3.2078]
[1738201300195,0.63703,3139.7,3139.6,3.2078]
[1738201302303,1.6436,3140.1,3139.6,3.2078]
[1738201302599,1.418,3140.1,3139.6,3.2078]
[1738201302802,0.63701,3139.8,3139.6,3.2078]
[1738201303502,0.63698,3140.0,3139.7,0.63702]
[1738201303797,1.418,3140.1,3139.6,3.84484]
[1738201304096,0.637,3139.9,3139.6,3.84484]
[1738201304298,3.7201,3140.2,3139.6,3.84484]
[1738201304299,0.63698,3140.0,3139.7,0.63703]
[1738201304499,3.7201,3140.2,3139.7,0.63703]
[1738201304698,0.63698,3140.0,3139.7,0.63703]
[1738201304906,0.637,3139.9,3139.6,4.38534]
[1738201305099,3.7201,3140.2,3139.6,3.7483]
[1738201305401,0.637,3139.9,3139.6,4.38534]
[1738201305602,3.7201,3140.2,3139.6,3.2078]
[1738201305803,0.63703,3139.7,3139.6,3.2078]
[1738201306499,0.63703,3139.7,3139.3,0.00477951]
[1738201306500,0.63709,3139.4,3139.3,0.00477951]
[1738201308006,0.63708,3139.5,3139.3,0.00477951]
[1738201309904,0.63709,3139.4,3139.3,0.00477951]
[1738201315502,3.84489,3139.4,3139.3,0.00477951]
[1738201315900,17.44489,3139.4,3139.3,0.00477951]
[1738201317804,5.26289,3139.4,3139.3,0.00477951]
[1738201320313,0.5466,3139.5,3139.3,0.00477951]
[1738201320610,13.6,3140.0,3139.3,0.00477951]
[1738201320611,0.63704,3139.7,3139.4,0.63708]
[1738201320804,0.63704,3139.7,3139.5,0.5168]
[1738201321413,3.2078,3140.1,3139.6,2.82925092]
[1738201321607,0.6369,3140.4,3140.0,3.84476]
[1738201321807,0.63693,3140.2,3140.1,0.5519]
[1738201322604,3.7547,3140.6,3140.1,0.5519]
[1738201322605,0.63687,3140.5,3140.1,0.5519]
[1738201322920,0.6369,3140.4,3140.1,0.5519]
[1738201323110,0.63687,3140.5,3140.1,1.0614]
[1738201323307,0.6369,3140.4,3140.1,1.0614]
[1738201323511,3.7547,3140.6,3140.1,1.0614]
[1738201323705,0.63687,3140.5,3140.1,1.69834]
[1738201324017,0.6369,3140.4,3140.1,1.0614]
[1738201324407,0.63689,3140.4,3140.1,1.0614]
[1738201324608,3.7547,3140.6,3140.1,1.69834]
[1738201324609,0.63688,3140.5,3140.1,1.69834]
[1738201324809,0.63689,3140.4,3140.1,1.0614]
[1738201325511,0.63688,3140.5,3140.1,1.69835]
[1738201325707,0.63688,3140.5,3140.2,2.82925092]
[1738201326011,1.93117951,3141.0,3140.4,0.63688]
[1738201326209,0.63683,3140.7,3140.3,0.5213]
[1738201326412,1.93117951,3141.0,3140.3,0.5213]
[1738201326608,0.51317951,3141.0,3140.5,2.82925092]
[1738201326809,3.2078,3141.9,3140.9,3.2078]
[1738201327008,0.5084,3142.0,3141.7,2.82925092]
[1738201327218,13.6,3142.4,3141.9,3.2078]
[1738201327408,13.6,3142.4,3141.7,2.82925092]
[1738201327610,0.5014,3142.3,3141.7,2.82925092]
[1738201328010,0.00477951,3142.3,3142.1,0.63654]
[1738201328212,0.00477951,3142.3,3142.2,0.63652]
[1738201329909,0.25891283,3143.8,3142.2,0.63652]
[1738201329910,3.2078,3143.5,3142.6,3.42417658]
[1738201330110,3.2078,3143.5,3142.2,6.59131]
[1738201330111,3.2078,3143.5,3142.9,6.63197658]
[1738201330312,0.5014,3143.8,3143.3,3.2078]
[1738201330518,1.04781764,3144.4,3143.8,0.63618]
[1738201330918,1.04781764,3144.4,3143.9,0.63617]
[1738201331118,1.04781764,3144.4,3142.9,1.59094]
[1738201331119,0.00477168,3144.4,3144.3,0.6361]
[1738201332320,19.30836883,3145.0,3144.3,5.0]
[1738201332321,16.10056883,3145.0,3144.3,5.0]
[1738201332618,16.10056883,3145.0,3144.8,0.63599]
[1738201332815,16.10056883,3145.0,3144.8,0.63598]
[1738201333019,14.1503,3145.3,3144.8,0.63598]
[1738201333221,14.1503,3145.3,3144.9,0.63597]
[1738201333514,14.1503,3145.3,3144.7,3.8438]
[1738201333719,14.1503,3145.3,3144.9,0.63596]
[1738201333921,13.6,3145.3,3144.7,6.63197658]
[1738201334113,13.6,3145.3,3145.1,0.63592]
[1738201334520,13.6,3145.3,3144.7,6.63197658]
[1738201334714,13.6,3145.3,3144.9,0.63596]
[1738201334915,13.6,3145.3,3144.7,6.63197658]
[1738201335319,13.6,3145.3,3144.9,0.63596]
[1738201335518,13.6,3145.3,3144.7,6.63197658]
[1738201335823,13.6,3145.3,3145.0,0.63595]
[1738201336127,0.00474541,3145.4,3145.3,0.6359]
[1738201336321,0.00474541,3145.4,3145.1,6.63197658]
[1738201336517,0.00474541,3145.4,3145.2,0.63591]
[1738201337117,0.00474541,3145.4,3145.1,6.63197658]
[1738201337325,0.00474541,3145.4,3145.3,0.6359]
[1738201337725,0.00474541,3145.4,3145.1,6.63197658]
[1738201338028,0.00474541,3145.4,3145.2,0.63591]
[1738201338625,3.2078,3146.3,3145.3,0.6359]
[1738201338929,0.63568,3146.4,3145.2,0.6359]
[1738201338930,3.84359,3145.9,3145.2,0.6359]
[1738201339124,13.6,3145.8,3145.2,0.6359]
[1738201339524,13.6,3145.8,3145.1,6.63197658]
[1738201340028,13.6,3145.8,3145.2,0.63592]
[1738201342828,13.6,3145.8,3145.3,0.63589]
[1738201343028,14.2358,3145.8,3145.2,0.63591]
[1738201343326,13.6,3145.8,3145.2,0.63591]
[1738201343721,3.2078,3146.7,3145.7,3.2078]
[1738201343924,0.5314,3146.8,3146.3,3.42417658]
[1738201344129,0.5314,3146.8,3146.7,0.63561]
[1738201344329,3.2078,3147.1,3146.6,3.42417658]
[1738201344624,13.6,3147.3,3146.7,3.2078]
[1738201345017,13.6,3147.3,3146.9,3.42417658]
[1738201345221,0.5314,3147.6,3147.2,3.42417658]
[1738201345443,0.5314,3147.6,3147.3,0.63547]
[1738201345732,0.5314,3147.6,3147.2,3.42417658]
[1738201345927,13.6,3147.9,3147.2,3.42417658]
[1738201346126,3.2078,3148.2,3147.7,0.6354]
[1738201346428,3.2078,3148.2,3147.5,6.63197658]
[1738201346631,3.2078,3148.2,3147.8,3.42417658]
[1738201346833,1.415,3149.0,3148.2,0.6353]
[1738201347029,0.63517,3148.9,3147.9,3.2078]
[1738201347228,14.23517,3148.9,3148.2,0.63531]
[1738201347430,13.6,3148.9,3148.3,0.63529]
[1738201347730,0.63519,3148.8,3148.2,0.6353]
[1738201347928,13.6,3148.9,3148.3,0.63528]
[1738201348130,3.2078,3149.1,3148.4,0.63527]
[1738201348439,0.63509,3149.3,3148.6,0.63521]
[1738201348632,3.2078,3149.7,3148.4,3.42417658]
[1738201348823,0.243,3149.9,3148.7,6.63197658]
[1738201349025,0.243,3149.9,3148.1,1.59309402]
[1738201349026,0.243,3149.9,3149.1,3.2078]
[1738201349326,4.6278,3150.1,3149.1,3.2078]
[1738201349528,6.63197658,3150.6,3149.1,3.2078]
[1738201349728,0.63486,3150.5,3149.6,6.63197658]
[1738201349925,3.2078,3150.6,3149.6,6.63197658]
[1738201350119,6.738,3151.1,3148.8,3.2078]
[1738201350120,3.2078,3149.8,3148.8,3.2078]
[1738201350324,0.63506,3149.5,3148.8,3.84298]
[1738201350525,3.2078,3149.8,3149.0,0.00476402]
[1738201350732,0.63512,3149.2,3149.0,0.00476402]
[1738201351035,0.63513,3149.1,3149.0,0.00476402]
[1738201351324,14.23513,3149.1,3149.0,0.00476402]
[1738201353134,0.6352,3148.8,3148.4,3.2078]
[1738201353932,0.6352,3148.8,3148.0,3.2078]
[1738201353933,3.2078,3148.8,3148.0,3.2078]
[1738201354131,0.63533,3148.1,3148.0,3.2078]
[1738201354534,0.6354,3147.8,3147.7,0.00476402]
[1738201355231,0.63535,3148.0,3147.7,0.00476402]
[1738201355431,13.6,3148.0,3147.7,0.00476402]
[1738201355934,0.63538,3147.9,3147.7,0.00476402]
[1738201356234,0.63539,3147.8,3147.7,0.00476402]
[1738201356828,3.2078,3148.4,3147.7,0.00476402]
[1738201357336,0.63537,3148.0,3147.7,0.00476402]
[1738201358133,0.63539,3147.8,3147.7,0.00476402]
[1738201359934,3.2078,3148.0,3147.7,0.00476402]
[1738201360234,3.2078,3148.4,3147.9,6.63197658]
[1738201360430,3.2078,3149.1,3147.9,6.63197658]
[1738201360636,0.63528,3148.4,3147.9,6.63197658]
[1738201360940,0.63525,3148.5,3147.9,7.26734658]
[1738201361137,0.63525,3148.5,3147.9,6.63197658]
[1738201361334,13.6,3149.0,3147.9,6.63197658]
[1738201361536,1.414,3148.9,3147.9,6.63197658]
[1738201361837,1.414,3148.8,3147.9,3.2078]
[1738201362037,0.63533,3148.1,3147.9,3.2078]
[1738201362636,3.2125385,3148.7,3147.9,3.2078]
[1738201362637,3.42417658,3148.6,3147.9,3.2078]
[1738201362945,0.63539,3147.8,3147.7,0.00476402]
[1738201363932,8.84319,3147.8,3147.7,0.00476402]
[1738201364136,3.2078,3147.8,3146.9,3.2078]
[1738201364341,0.2425,3148.0,3147.0,4.05971658]
[1738201364539,0.2425,3148.0,3147.0,3.42417658]
[1738201364738,0.63548,3147.4,3147.0,3.42417658]
[1738201365039,1.414,3147.7,3147.0,3.42417658]
[1738201365241,0.63546,3147.5,3147.0,3.42417658]
[1738201365540,1.414,3147.7,3146.9,3.21256402]
[1738201365739,0.63555,3147.0,3146.9,3.21256402]
[1738201365946,0.63555,3147.0,3146.9,0.00476402]
[1738201367848,0.63554,3147.1,3146.9,0.00476402]
[1738201368345,0.63555,3147.0,3146.9,0.00476402]
[1738201370046,0.63552,3147.2,3146.9,0.00476402]
[1738201370343,1.414,3147.3,3146.9,0.00476402]
[1738201370846,0.63553,3147.1,3146.9,0.00476402]
[1738201371044,0.63552,3147.2,3146.9,0.00476402]
[1738201371247,2.0495,3147.3,3146.9,0.00476402]
[1738201371937,3.2078,3147.5,3146.9,0.00476402]
[1738201372343,0.63548,3147.4,3146.9,0.00476402]
[1738201372538,3.2078,3147.5,3146.9,0.00476402]
[1738201372748,0.6355,3147.3,3146.9,0.00476402]
[1738201374347,3.2078,3147.5,3146.9,0.00476402]
[1738201374754,0.63555,3147.0,3146.9,0.00476402]
[1738201375451,0.63555,3147.1,3146.9,0.00476402]
[1738201375642,3.2078,3147.5,3146.9,0.00476402]
[1738201375847,0.6355,3147.3,3146.9,0.00476402]
[1738201376547,0.63552,3147.2,3146.9,0.00476402]
[1738201377452,1.414,3147.4,3146.9,0.00476402]
[1738201377657,0.63555,3147.0,3146.9,0.00476402]
[1738201379953,3.2078,3147.5,3146.9,3.4289406]
[1738201380148,0.63549,3147.3,3146.9,3.4289406]
[1738201380351,0.63548,3147.4,3147.0,0.63555]
[1738201380556,0.63548,3147.4,3147.0,1.16575]
[1738201381052,3.84326,3147.5,3147.0,1.16575]
[1738201381248,3.2078,3147.5,3147.2,0.6355]
[1738201381449,3.2078,3147.5,3147.1,0.63552]
[1738201381650,0.63545,3147.5,3147.0,1.0689]
[1738201381845,0.63545,3147.5,3147.0,1.70444]
[1738201382044,15.014,3148.0,3147.1,3.2078]
[1738201382243,0.63541,3147.8,3147.2,0.63551]
[1738201382454,15.014,3148.0,3147.2,0.63551]
[1738201382651,0.63544,3147.6,3147.1,3.84332]
[1738201382954,0.63545,3147.6,3147.1,3.2078]
[1738201383253,0.63545,3147.6,3147.2,0.63551]
[1738201383452,13.6,3148.0,3147.1,3.2078]
[1738201383663,0.63538,3147.9,3147.4,0.63546]
[1738201383953,3.2078,3148.1,3147.7,4.05957658]
[1738201384253,3.2078,3148.1,3147.5,3.2078]
[1738201384455,0.63539,3147.8,3147.5,3.2078]
[1738201384758,0.63537,3147.9,3147.5,3.2078]
[1738201385053,3.2078,3148.1,3147.5,3.2078]
[1738201385354,0.6355,3147.3,3147.1,3.2078]
[1738201385748,2.12078,3148.0,3147.0,1.0689]
[1738201385952,0.63548,3147.4,3147.0,1.0689]
[1738201386351,0.63551,3147.3,3147.0,1.0689]
[1738201387548,0.63549,3147.4,3147.0,1.0689]
[1738201387753,0.63553,3147.2,3147.0,1.0689]
[1738201388557,3.2078,3147.7,3147.0,1.0689]
[1738201388558,0.6355,3147.3,3147.0,1.0689]
[1738201389257,0.63549,3147.3,3147.0,1.0689]
[1738201391258,3.2078,3147.7,3147.0,1.0689]
[1738201391557,13.6,3147.9,3147.0,1.0689]
[1738201391558,3.2078,3147.6,3147.1,3.2078]
[1738201391755,3.2078,3147.6,3146.9,0.00476402]
[1738201392061,0.63555,3147.0,3146.9,0.00476402]
[1738201392255,0.63555,3147.0,3146.9,0.00262467]
[1738201392654,6.63197658,3147.2,3145.8,3.84358]
[1738201392851,0.5447,3146.9,3145.8,3.2078]
[1738201393152,0.5447,3146.9,3145.7,3.96677658]
[1738201393153,0.63561,3146.8,3146.3,0.63567]
[1738201393558,3.2078,3147.4,3146.3,3.42417658]
[1738201393752,1.439,3147.5,3146.6,6.63197658]
[1738201393954,0.00476402,3147.2,3147.0,3.2078]
[1738201395056,0.00476402,3147.2,3146.7,1.0775]
[1738201395362,0.63559,3146.9,3146.7,0.5426]
[1738201395563,0.63559,3146.8,3146.7,0.5426]
[1738201395958,0.63559,3146.8,3146.5,0.00476402]
[1738201396164,0.63563,3146.6,3146.5,0.00476402]
[1738201397564,9.0372,3147.0,3146.5,0.00476402]
[1738201397765,0.63563,3146.7,3146.5,0.00476402]
[1738201397964,9.0372,3147.0,3146.5,0.00476402]
[1738201398160,0.63563,3146.6,3146.5,0.00476402]
[1738201400064,3.84343,3146.6,3146.5,0.00476402]
[1738201400665,3.84343,3146.6,3146.5,0.00262422]
[1738201401368,3.84343,3146.6,3146.5,0.00179668]
[1738201403169,3.42417658,3146.3,3145.3,3.2078]
[1738201403468,0.63584,3145.6,3145.3,3.2078]
[1738201403665,16.8078,3146.1,3145.3,3.2078]
[1738201404065,16.8078,3146.1,3145.4,0.521]
[1738201404363,0.6358,3145.8,3145.4,0.52576402]
[1738201404863,16.8078,3146.1,3145.4,0.52576402]
[1738201405058,0.63573,3146.2,3145.6,0.63583]
[1738201405474,1.456,3146.4,3145.5,0.5061]
[1738201405668,0.6357,3146.3,3145.8,0.63579]
[1738201406172,0.6357,3146.3,3145.5,1.0431]
[1738201406173,3.2078,3146.5,3145.5,1.0431]
[1738201406361,0.514,3146.8,3145.7,6.63197658]
[1738201406362,0.63564,3146.6,3145.7,6.63197658]
[1738201406562,0.63566,3146.5,3146.0,0.63575]
[1738201406762,0.63566,3146.5,3145.7,6.63197658]
[1738201406763,0.6357,3146.3,3146.1,0.516]
[1738201407366,0.63567,3146.5,3146.1,0.516]
[1738201408166,0.63564,3146.6,3146.1,1.15173]
[1738201408366,2.0866,3146.8,3146.3,0.63569]
[1738201408575,2.0866,3146.8,3146.2,0.6357]
[1738201408765,1.451,3146.8,3146.3,0.5132]
[1738201409071,3.42417658,3147.5,3146.3,0.5132]
[1738201409072,0.63507,3149.4,3148.7,0.6352]
[1738201409365,14.2351,3149.3,3148.5,0.63524]
[1738201409572,0.63514,3149.1,3148.4,0.63525]
[1738201410167,0.00476402,3149.1,3148.4,0.00476402]
[1738201410473,0.00476402,3149.1,3148.5,0.63525]
[1738201411766,0.00476402,3149.1,3148.4,0.00476402]
[1738201411971,0.00476402,3149.1,3148.6,0.63522]
[1738201412166,0.00476402,3149.1,3148.7,3.2078]
[1738201412470,0.00476402,3149.1,3148.9,0.63515]
[1738201412671,0.00476402,3149.1,3148.7,3.2078]
[1738201412866,0.00476402,3149.1,3149.0,0.63515]
[1738201413067,0.00476402,3149.1,3148.7,3.2078]
[1738201413665,0.00476402,3149.1,3148.8,0.63518]
[1738201414060,0.00476402,3149.1,3148.7,3.2078]
[1738201415074,0.00476402,3149.1,3148.7,3.843]
[1738201415272,0.00476402,3149.1,3148.8,0.63519]
[1738201415472,0.00476402,3149.1,3149.0,3.42417658]
[1738201416473,0.00476402,3149.1,3148.7,3.2078]
[1738201418078,0.00476402,3149.1,3148.9,3.42417658]
[1738201422574,0.00476402,3149.1,3148.7,3.2078]
[1738201423975,0.00476402,3149.1,3148.8,0.63519]
[1738201426076,0.00476402,3149.1,3148.7,3.843]
[1738201426278,0.00476402,3149.1,3148.7,3.84301]
[1738201427477,0.00476402,3149.1,3148.7,3.2078]
[1738201427786,0.63519,3148.8,3148.7,3.2078]
[1738201428083,0.63525,3148.5,3148.4,0.00476402]
[1738201433483,3.2078,3148.7,3148.4,0.00476402]
[1738201433686,2.06824,3148.6,3148.4,0.00476402]
[1738201433882,1.433,3148.6,3148.4,0.00476402]
[1738201434285,2.06823,3148.6,3148.4,0.00476402]
[1738201436181,0.63525,3148.5,3148.4,0.00476402]
[1738201436890,2.05624,3148.6,3148.4,0.00476402]
[1738201437482,1.421,3148.6,3148.4,0.00476402]
[1738201437688,0.63525,3148.5,3148.4,0.00476402]
[1738201440293,0.63521,3148.8,3148.4,0.00476402]
[1738201440592,5.29376402,3149.1,3148.5,2.8152728]
[1738201440593,2.04921,3148.7,3148.5,2.8152728]
[1738201441287,0.63523,3148.6,3148.5,2.8152728]
[1738201441993,2.04922,3148.7,3148.5,2.8152728]
[1738201442491,1.414,3148.9,3148.5,2.8152728]
[1738201442686,1.414,3148.9,3148.8,2.8152728]
[1738201442997,0.63515,3149.0,3148.8,2.8152728]
[1738201443194,0.00476402,3149.1,3148.8,2.8152728]
[1738201443389,0.00476402,3149.1,3149.0,2.8152728]
[1738201443390,0.63989402,3149.1,3149.0,2.8152728]
[1738201445292,0.63989402,3149.1,3148.7,6.5220728]
[1738201445293,0.63519,3148.8,3148.7,6.5220728]
[1738201445888,0.00476402,3149.1,3148.7,3.3142728]
[1738201446090,0.63525,3148.5,3148.4,2.82003682]
[1738201446691,0.63524,3148.6,3148.4,2.82003682]
[1738201446900,0.63525,3148.5,3148.4,2.82003682]
[1738201447600,0.63522,3148.7,3148.4,2.82003682]
[1738201447899,0.63525,3148.6,3148.4,2.82003682]
[1738201448892,3.2078,3148.8,3148.4,2.82003682]
[1738201449090,0.63522,3148.7,3148.4,2.82003682]
[1738201449493,0.63524,3148.6,3148.4,2.82003682]
[1738201449787,3.2078,3148.8,3148.4,2.82003682]
[1738201450100,5.92425,3148.5,3148.4,0.00476402]
[1738201450598,5.92425,3148.5,3148.4,0.00303668]
[1738201451498,5.92425,3148.5,3148.4,0.00223668]
[1738201451800,0.63535,3148.1,3147.9,0.5162]
[1738201452099,3.2078,3148.1,3147.9,0.5162]
[1738201453897,3.84314,3148.1,3147.9,0.5162]
[1738201454199,0.63539,3147.8,3147.7,0.00476402]
[1738201457504,0.63535,3148.0,3147.7,0.00476402]
[1738201457901,0.63537,3147.9,3147.7,0.00476402]
[1738201458504,0.63537,3147.9,3147.7,0.00303668]
[1738201461705,4.6218,3148.1,3147.7,0.00303668]
[1738201461906,0.63538,3147.9,3147.7,0.00303668]
[1738201462207,4.6218,3148.1,3147.7,0.00303668]
[1738201462406,5.25714,3148.1,3147.7,0.00303668]
[1738201462601,1.58791,3149.0,3147.8,3.4506528]
[1738201462602,0.63528,3148.4,3147.8,3.4506528]
[1738201462902,0.63531,3148.2,3147.9,0.5312]
[1738201464002,0.63533,3148.1,3147.9,0.5312]
[1738201464205,18.2218,3148.5,3147.7,0.00303668]
[1738201464206,0.63539,3147.8,3147.7,0.00303668]
[1738201464402,0.63538,3147.9,3147.7,0.00303668]
[1738201464607,18.2218,3148.5,3147.7,0.00303668]
[1738201464608,0.63537,3148.0,3147.7,0.00303668]
[1738201465210,0.63537,3147.9,3147.7,0.00303668]
[1738201465409,5.289,3148.4,3147.7,0.00303668]
[1738201465610,0.63537,3147.9,3147.7,0.00303668]
[1738201466110,0.63536,3148.0,3147.7,0.00303668]
[1738201468009,5.289,3148.4,3147.7,0.00303668]
[1738201468513,0.63536,3148.0,3147.7,0.00303668]
[1738201469113,0.63539,3147.8,3147.7,0.00303668]
[1738201469611,5.289,3148.4,3147.7,0.00303668]
[1738201469814,0.63536,3148.0,3147.7,0.00216973]
[1738201470914,0.63539,3147.8,3147.7,0.00216973]
[1738201471115,0.63538,3147.9,3147.7,0.00216973]
[1738201472209,3.2078,3148.0,3147.7,0.00216973]
[1738201472407,3.84316,3148.0,3147.7,0.00216973]
[1738201474113,0.63538,3147.9,3147.7,0.00216973]
[1738201474318,0.63539,3147.8,3147.7,0.00216973]
[1738201474820,0.63538,3147.9,3147.7,0.00216973]
[1738201475517,0.63539,3147.8,3147.7,0.00216973]
[1738201475717,3.2078,3148.0,3147.7,0.00216973]
[1738201476018,3.84316,3148.0,3147.7,0.00216973]
[1738201476410,3.2078,3148.0,3147.8,2.8152728]
[1738201476809,3.2078,3148.0,3147.8,3.3401728]
[1738201477718,3.84316,3148.0,3147.8,3.3401728]
[1738201477913,3.2078,3148.0,3147.7,0.00216973]
[1738201478413,3.2078,3148.0,3147.8,2.8152728]
[1738201479416,3.84315,3148.0,3147.8,2.8152728]
[1738201479915,0.63539,3147.9,3147.7,0.00216973]
[1738201480120,3.2078,3148.0,3147.7,0.00216973]
[1738201480121,0.63539,3147.8,3147.7,0.00216973]
[1738201480625,3.2078,3148.0,3147.7,0.00216973]
[1738201480923,3.2078,3148.0,3147.8,2.8152728]
[1738201481113,3.2078,3148.0,3147.8,1.79473061]
[1738201481313,0.63537,3147.9,3147.8,1.79473061]
[1738201481617,0.63537,3147.9,3147.7,0.00216973]
[1738201481817,0.63537,3147.9,3147.5,2.30455314]
[1738201483319,0.63537,3147.9,3147.5,2.93999314]
[1738201483819,0.63536,3148.0,3147.5,2.93999314]
[1738201486420,0.63536,3148.0,3147.6,0.63543]
[1738201486622,0.63536,3148.0,3147.5,2.93999314]
[1738201487218,0.63536,3148.0,3147.6,3.2078]
[1738201487817,3.2078,3148.4,3147.8,2.8152728]
[1738201488031,0.6353,3148.3,3147.8,2.8152728]
[1738201488225,0.6353,3148.3,3147.9,0.5118]
[1738201488617,0.6353,3148.3,3148.0,3.2078]
[1738201488818,15.025,3148.5,3148.0,3.2078]
[1738201489125,0.63533,3148.1,3148.0,1.84875778]
[1738201489722,15.025,3148.5,3148.0,1.84875778]
[1738201489723,0.63532,3148.2,3148.0,1.84875778]
[1738201489921,15.019,3148.5,3148.0,1.84875778]
[1738201490225,0.63531,3148.3,3148.0,1.84875778]
[1738201490525,0.63533,3148.2,3148.0,1.84875778]
[1738201492428,0.63533,3148.1,3148.0,1.84875778]
[1738201493020,0.63533,3148.1,3148.0,1.34520939]
[1738201494225,15.019,3148.5,3148.0,1.34520939]
[1738201494427,0.63533,3148.1,3148.0,1.34520939]
[1738201495223,0.63535,3148.0,3147.9,0.5118]
[1738201495531,15.019,3148.5,3147.5,2.8152728]
[1738201495532,0.63543,3147.7,3147.5,2.8152728]
[1738201496421,3.2078,3147.8,3147.5,2.8152728]
[1738201496422,0.5283,3148.1,3147.5,2.8152728]
[1738201496617,0.6354,3147.8,3147.5,2.8152728]
[1738201497023,0.63543,3147.7,3147.5,2.8152728]
[1738201497925,0.5283,3148.1,3147.5,2.8152728]
[1738201498129,0.63543,3147.7,3147.5,2.8152728]
[1738201499626,0.63543,3147.6,3147.5,2.8152728]
[1738201500325,0.63545,3147.5,3147.4,0.00476402]
[1738201501027,1.414,3148.0,3147.4,0.00476402]
[1738201501232,0.63542,3147.7,3147.5,2.8152728]
[1738201501532,3.7064,3148.3,3147.6,0.63543]
[1738201501726,0.63532,3148.2,3147.9,2.8152728]
[1738201502035,0.63523,3148.6,3148.1,0.63532]
[1738201502237,0.63523,3148.6,3147.9,6.0230728]
[1738201502238,0.63526,3148.5,3148.2,3.3352728]
[1738201502731,0.63524,3148.6,3148.2,3.3352728]
[1738201503044,3.2078,3148.7,3148.2,3.3352728]
[1738201503227,3.2078,3148.7,3148.5,2.8152728]
[1738201503533,3.84301,3148.7,3148.5,2.8152728]
[1738201503732,0.63521,3148.7,3148.5,2.8152728]
[1738201503935,3.2078,3148.8,3148.5,1.80288258]
[1738201504121,3.843,3148.8,3148.5,2.8152728]
[1738201504326,3.2078,3148.8,3148.6,0.5064]
[1738201504725,3.84299,3148.8,3148.6,0.5064]
[1738201504928,3.2078,3148.8,3148.6,0.5064]
[1738201505127,3.843,3148.8,3148.6,0.5064]
[1738201505330,0.63521,3148.7,3148.2,3.3352728]
[1738201505527,3.84299,3148.8,3148.2,4.4769728]
[1738201506532,0.00476402,3149.1,3148.3,0.63528]
[1738201506731,0.63519,3148.8,3148.3,0.63528]
[1738201507033,0.00476402,3149.1,3148.3,3.2078]
[1738201507239,0.63518,3148.9,3148.3,3.84307]
[1738201507433,0.63519,3148.9,3148.3,3.84307]
[1738201507834,0.63519,3148.8,3148.3,3.84307]
[1738201509033,0.63519,3148.9,3148.4,0.63526]
[1738201509343,0.6352,3148.8,3148.3,3.84308]
[1738201509934,0.00476402,3149.1,3148.3,3.2078]
[1738201510134,0.63519,3148.8,3148.3,3.84308]
[1738201510542,0.00476402,3149.1,3148.7,0.6352]
[1738201510737,0.00476402,3149.1,3148.9,2.8152728]
[1738201510941,0.00476402,3149.1,3148.8,0.5152]
[1738201510942,0.63990402,3149.1,3148.8,1.0607]
[1738201511136,0.63517,3148.9,3148.8,0.5152]
[1738201516544,0.63517,3148.9,3148.3,4.38858]
[1738201516545,0.63527,3148.4,3148.3,3.2078]
[1738201516938,0.63533,3148.1,3147.9,3.7543]
[1738201517344,0.5157,3148.3,3147.9,3.7543]
[1738201517649,0.63541,3147.7,3147.2,3.4507828]
[1738201517839,0.6354,3147.8,3147.3,1.18199]
[1738201518146,0.6354,3147.8,3147.3,1.5944]
[1738201518448,3.2078,3148.0,3147.3,1.5944]
[1738201518651,0.63542,3147.7,3147.3,1.5944]
[1738201518841,0.63545,3147.5,3147.3,1.5944]
[1738201520647,0.6354,3147.8,3147.3,5.43768]
[1738201520945,0.63545,3147.5,3147.3,4.3047]
[1738201521344,3.2078,3148.0,3147.3,4.3047]
[1738201521345,0.63544,3147.6,3147.3,4.3047]
[1738201521554,0.63542,3147.7,3147.3,4.3047]
[1738201522055,3.2078,3148.0,3147.3,4.3047]
[1738201522448,0.63543,3147.7,3147.3,4.3047]
[1738201522849,3.2078,3148.0,3147.3,4.3047]
[1738201523049,0.63545,3147.5,3147.3,3.7543]
[1738201523250,3.84325,3147.5,3146.6,2.8152728]
[1738201523450,3.2078,3147.5,3146.3,6.0230728]
[1738201523753,0.63561,3146.8,3146.3,6.0230728]
[1738201524061,4.6208,3146.9,3146.3,3.2078]
[1738201524255,3.2078,3146.4,3146.2,1.5505]
[1738201524456,1.15693,3146.7,3146.2,1.5505]
[1738201524759,0.00476402,3146.6,3146.2,1.5505]
[1738201525060,0.64039402,3146.6,3146.2,1.5505]
[1738201525455,0.00476402,3146.6,3146.3,2.8152728]
[1738201525958,0.00476402,3146.6,3146.3,3.4509528]
[1738201526162,0.00476402,3146.6,3146.3,3.4509628]
[1738201526567,0.00476402,3146.6,3146.3,2.8152728]
[1738201526768,0.00476402,3146.6,3146.4,0.63567]